[Event "*** Titled Tuesday Blitz"]
[Site "Chess.com"]
[Date "2020.04.21"]
[Round "4"]
[White "ReyesBraulio"]
[Black "WinningButNotReally"]
[Result "0-1"]
[WhiteElo "2137"]
[BlackElo "2411"]
[TimeControl "180+1"]
[EndTime "10:35:46 PDT"]
[Termination "WinningButNotReally won by resignation"]

1. d4 {[%clk 0:03:00.9]} 1... Nf6 {[%clk 0:02:58.9]} 2. f4 {[%clk 0:03:01.1]}
2... c5 {[%clk 0:02:58.2]} 3. Nf3 {[%clk 0:03:01.7]} 3... d5 {[%clk 0:02:57.7]}
4. e3 {[%clk 0:03:01.6]} 4... Nc6 {[%clk 0:02:57.6]} 5. c3 {[%clk 0:03:02]} 5...
g6 {[%clk 0:02:57.5]} 6. Bd3 {[%clk 0:03:02.1]} 6... Bg7 {[%clk 0:02:57.5]} 7.
Nbd2 {[%clk 0:03:02.1]} 7... O-O {[%clk 0:02:58]} 8. O-O {[%clk 0:03:01.2]} 8...
Bf5 {[%clk 0:02:56.3]} 9. Bxf5 {[%clk 0:02:59.6]} 9... gxf5 {[%clk 0:02:57.2]}
10. Ne5 {[%clk 0:02:59.8]} 10... e6 {[%clk 0:02:53.1]} 11. Rf3 {[%clk
0:02:59.7]} 11... Ng4 {[%clk 0:02:47.8]} 12. Rh3 {[%clk 0:02:51.2]} 12... Ncxe5
{[%clk 0:02:45.7]} 13. dxe5 {[%clk 0:02:50.9]} 13... d4 {[%clk 0:02:41.8]} 14.
cxd4 {[%clk 0:02:24]} 14... cxd4 {[%clk 0:02:41.3]} 15. e4 {[%clk 0:02:24.5]}
15... d3 {[%clk 0:02:37.9]} 16. Nb3 {[%clk 0:02:07.1]} 16... Qb6+ {[%clk
0:02:37.1]} 0-1

[Event "*** Titled Tuesday Blitz"]
[Site "Chess.com"]
[Date "2020.04.21"]
[Round "4"]
[White "TastyFrenchFries"]
[Black "Gloomy_Wanderer"]
[Result "1-0"]
[WhiteElo "2388"]
[BlackElo "2759"]
[TimeControl "180+1"]
[EndTime "10:36:02 PDT"]
[Termination "TastyFrenchFries won by resignation"]

1. e4 {[%clk 0:03:00.9]} 1... c5 {[%clk 0:02:59.6]} 2. Nf3 {[%clk 0:03:00.7]}
2... a6 {[%clk 0:03:00.1]} 3. c3 {[%clk 0:03:00.6]} 3... d5 {[%clk 0:03:00.1]}
4. exd5 {[%clk 0:03:00.2]} 4... Qxd5 {[%clk 0:03:01]} 5. Qb3 {[%clk 0:03:00.4]}
5... Qxb3 {[%clk 0:02:43.2]} 6. axb3 {[%clk 0:03:01.3]} 6... Nc6 {[%clk
0:02:43.7]} 7. Be2 {[%clk 0:02:54.3]} 7... Bf5 {[%clk 0:02:39.1]} 8. O-O {[%clk
0:02:53.6]} 8... O-O-O {[%clk 0:02:37]} 9. Na3 {[%clk 0:02:53.4]} 9... e5 {[%clk
0:02:32.2]} 10. Nc4 {[%clk 0:02:51]} 10... f6 {[%clk 0:02:32.2]} 11. Ne3 {[%clk
0:02:44.4]} 11... Bd3 {[%clk 0:02:27.6]} 12. Bxd3 {[%clk 0:02:43.9]} 12... Rxd3
{[%clk 0:02:28.5]} 13. Ne1 {[%clk 0:02:42.6]} 13... Rd7 {[%clk 0:02:28.3]} 14.
f4 {[%clk 0:02:41.6]} 14... exf4 {[%clk 0:02:17.1]} 15. Rxf4 {[%clk 0:02:42.5]}
15... Bd6 {[%clk 0:02:17.5]} 16. Rf1 {[%clk 0:02:33.4]} 16... Nge7 {[%clk
0:02:17.4]} 17. Nc4 {[%clk 0:02:29.8]} 17... Bc7 {[%clk 0:02:17.6]} 18. d3
{[%clk 0:02:30.3]} 18... Ng6 {[%clk 0:02:08.8]} 19. Be3 {[%clk 0:02:27.8]} 19...
Rd5 {[%clk 0:02:08.4]} 20. Rd1 {[%clk 0:02:21.8]} 20... Re8 {[%clk 0:02:07]} 21.
Nc2 {[%clk 0:02:20.2]} 21... b5 {[%clk 0:01:55.6]} 22. N4a3 {[%clk 0:02:11.4]}
1-0

[Event "*** Titled Tuesday Blitz"]
[Site "Chess.com"]
[Date "2020.04.21"]
[Round "4"]
[White "bakki78"]
[Black "EfM13"]
[Result "1-0"]
[WhiteElo "2766"]
[BlackElo "2365"]
[TimeControl "180+1"]
[EndTime "10:36:05 PDT"]
[Termination "bakki78 won by resignation"]

1. e4 {[%clk 0:02:59.5]} 1... g6 {[%clk 0:02:59.1]} 2. d4 {[%clk 0:02:59]} 2...
Bg7 {[%clk 0:02:59.3]} 3. Nc3 {[%clk 0:02:59.2]} 3... d6 {[%clk 0:02:59.5]} 4.
f4 {[%clk 0:02:59.2]} 4... Nc6 {[%clk 0:02:54.8]} 5. Be3 {[%clk 0:02:56.8]} 5...
e5 {[%clk 0:02:51.9]} 6. dxe5 {[%clk 0:02:53.3]} 6... dxe5 {[%clk 0:02:51.1]} 7.
Qxd8+ {[%clk 0:02:53.7]} 7... Nxd8 {[%clk 0:02:19.2]} 8. Nd5 {[%clk 0:02:52.7]}
8... Ne6 {[%clk 0:02:18.2]} 9. f5 {[%clk 0:02:52.4]} 9... gxf5 {[%clk
0:02:14.7]} 10. exf5 {[%clk 0:02:51.5]} 10... c6 {[%clk 0:02:14.4]} 11. fxe6
{[%clk 0:02:43.7]} 11... cxd5 {[%clk 0:02:13.8]} 12. exf7+ {[%clk 0:02:44.2]}
12... Kxf7 {[%clk 0:02:12.8]} 13. Nf3 {[%clk 0:02:44.8]} 13... h6 {[%clk
0:02:09.3]} 14. Be2 {[%clk 0:02:36.3]} 14... Bf5 {[%clk 0:02:08.9]} 15. O-O
{[%clk 0:02:35.6]} 15... Ke6 {[%clk 0:02:08.6]} 16. Nh4 {[%clk 0:02:29]} 16...
Ne7 {[%clk 0:01:41.1]} 17. Nxf5 {[%clk 0:02:24.1]} 17... Nxf5 {[%clk 0:01:40.2]}
18. Bg4 {[%clk 0:02:24.6]} 18... Rhf8 {[%clk 0:01:40]} 19. Bc5 {[%clk
0:02:17.3]} 19... Rf6 {[%clk 0:01:31.2]} 20. Rxf5 {[%clk 0:02:17.1]} 20... Rxf5
{[%clk 0:01:29.5]} 21. Rf1 {[%clk 0:02:17.5]} 1-0

[Event "*** Titled Tuesday Blitz"]
[Site "Chess.com"]
[Date "2020.04.21"]
[Round "4"]
[White "lucasran"]
[Black "grunbergmihai"]
[Result "1-0"]
[WhiteElo "2615"]
[BlackElo "2368"]
[TimeControl "180+1"]
[EndTime "10:36:26 PDT"]
[Termination "lucasran won by resignation"]

1. Nf3 {[%clk 0:03:00.9]} 1... Nf6 {[%clk 0:02:59.4]} 2. c4 {[%clk 0:03:00.6]}
2... g6 {[%clk 0:03:00.3]} 3. Nc3 {[%clk 0:03:00.4]} 3... d5 {[%clk 0:02:58.8]}
4. d4 {[%clk 0:03:00.2]} 4... Bg7 {[%clk 0:02:58.3]} 5. Bg5 {[%clk 0:02:59.5]}
5... Ne4 {[%clk 0:02:52.8]} 6. Bh4 {[%clk 0:02:59.7]} 6... c6 {[%clk 0:02:46.5]}
7. e3 {[%clk 0:02:57.3]} 7... Nxc3 {[%clk 0:02:44.9]} 8. bxc3 {[%clk 0:02:56.8]}
8... O-O {[%clk 0:02:44.7]} 9. Be2 {[%clk 0:02:50.5]} 9... Nd7 {[%clk
0:02:43.7]} 10. cxd5 {[%clk 0:02:49.3]} 10... cxd5 {[%clk 0:02:43.4]} 11. O-O
{[%clk 0:02:49.3]} 11... Nf6 {[%clk 0:02:38.3]} 12. Qb3 {[%clk 0:02:47.5]} 12...
b6 {[%clk 0:02:34.6]} 13. c4 {[%clk 0:02:40]} 13... dxc4 {[%clk 0:02:32]} 14.
Bxc4 {[%clk 0:02:40.9]} 14... Bb7 {[%clk 0:02:30.6]} 15. Ne5 {[%clk 0:02:40.6]}
15... Bd5 {[%clk 0:02:08.1]} 16. Bxd5 {[%clk 0:01:30.4]} 16... Nxd5 {[%clk
0:01:59.2]} 17. Nc6 {[%clk 0:01:28.7]} 1-0

[Event "*** Titled Tuesday Blitz"]
[Site "Chess.com"]
[Date "2020.04.21"]
[Round "4"]
[White "ShieldingOff"]
[Black "elisak43"]
[Result "0-1"]
[WhiteElo "2008"]
[BlackElo "2391"]
[TimeControl "180+1"]
[EndTime "10:36:35 PDT"]
[Termination "elisak43 won by checkmate"]

1. d4 {[%clk 0:03:00.9]} 1... Nf6 {[%clk 0:03:00.9]} 2. c4 {[%clk 0:03:00.2]}
2... e6 {[%clk 0:03:01]} 3. g3 {[%clk 0:02:59]} 3... c5 {[%clk 0:03:00.5]} 4.
Nf3 {[%clk 0:02:56.2]} 4... cxd4 {[%clk 0:02:54.9]} 5. Nxd4 {[%clk 0:02:55.6]}
5... d5 {[%clk 0:02:55.8]} 6. Bg2 {[%clk 0:02:54.7]} 6... e5 {[%clk 0:02:55.3]}
7. Nc2 {[%clk 0:02:53]} 7... d4 {[%clk 0:02:54.9]} 8. O-O {[%clk 0:02:52.5]}
8... Nc6 {[%clk 0:02:52.8]} 9. Bd2 {[%clk 0:02:44.1]} 9... h5 {[%clk 0:02:48.6]}
10. b4 {[%clk 0:02:43.7]} 10... h4 {[%clk 0:02:48]} 11. b5 {[%clk 0:02:39.7]}
11... Ne7 {[%clk 0:02:46.1]} 12. Bg5 {[%clk 0:02:36.3]} 12... Nf5 {[%clk
0:02:44]} 13. Nd2 {[%clk 0:02:25.9]} 13... hxg3 {[%clk 0:02:42]} 14. hxg3 {[%clk
0:02:24.9]} 14... Qb6 {[%clk 0:02:31.4]} 15. Ne4 {[%clk 0:02:10.6]} 15... Nxe4
{[%clk 0:02:20.9]} 16. Bxe4 {[%clk 0:02:09.8]} 16... Qg6 {[%clk 0:02:21.8]} 17.
Qd2 {[%clk 0:01:43.5]} 17... Qh5 {[%clk 0:02:07.5]} 18. Rfc1 {[%clk 0:01:40.4]}
18... Nxg3 {[%clk 0:01:38.5]} 19. fxg3 {[%clk 0:01:36.1]} 19... Qh2+ {[%clk
0:01:37.3]} 20. Kf1 {[%clk 0:01:35.7]} 20... Bh3+ {[%clk 0:01:36.7]} 21. Ke1
{[%clk 0:01:34.9]} 21... Qg1# {[%clk 0:01:36.7]} 0-1

[Event "*** Titled Tuesday Blitz"]
[Site "Chess.com"]
[Date "2020.04.21"]
[Round "4"]
[White "Indianlad"]
[Black "kungmongmanh"]
[Result "1-0"]
[WhiteElo "2982"]
[BlackElo "2588"]
[TimeControl "180+1"]
[EndTime "10:36:37 PDT"]
[Termination "Indianlad won by resignation"]

1. Nf3 {[%clk 0:03:00.9]} 1... Nf6 {[%clk 0:02:58.9]} 2. c4 {[%clk 0:03:01.4]}
2... e6 {[%clk 0:02:58.7]} 3. Nc3 {[%clk 0:03:01.7]} 3... d5 {[%clk 0:02:58]} 4.
e3 {[%clk 0:03:01.1]} 4... Be7 {[%clk 0:02:57.4]} 5. b3 {[%clk 0:03:01.1]} 5...
O-O {[%clk 0:02:57.7]} 6. Bb2 {[%clk 0:03:01.7]} 6... c5 {[%clk 0:02:58]} 7.
cxd5 {[%clk 0:03:02.4]} 7... Nxd5 {[%clk 0:02:54.1]} 8. Qb1 {[%clk 0:03:01.4]}
8... Bf6 {[%clk 0:02:50.7]} 9. h4 {[%clk 0:03:01.4]} 9... Nxc3 {[%clk
0:02:46.8]} 10. dxc3 {[%clk 0:03:00.2]} 10... Nc6 {[%clk 0:02:31.7]} 11. Bd3
{[%clk 0:03:00.3]} 11... h6 {[%clk 0:02:27.7]} 12. g4 {[%clk 0:03:00.6]} 12...
Ne5 {[%clk 0:02:21]} 13. Nxe5 {[%clk 0:03:00.2]} 13... Bxe5 {[%clk 0:02:21.2]}
14. Qc2 {[%clk 0:02:56.4]} 14... f5 {[%clk 0:02:16.1]} 15. O-O-O {[%clk
0:02:55.6]} 15... Qb6 {[%clk 0:02:01.9]} 16. f4 {[%clk 0:02:55.8]} 16... Bd6
{[%clk 0:01:47.5]} 17. g5 {[%clk 0:02:56.2]} 17... h5 {[%clk 0:01:47.3]} 18. g6
{[%clk 0:02:55.2]} 18... Be7 {[%clk 0:01:45.9]} 19. Qe2 {[%clk 0:02:55.1]} 19...
Bf6 {[%clk 0:01:05.8]} 20. Qxh5 {[%clk 0:02:52.9]} 20... Rd8 {[%clk 0:01:06.2]}
21. c4 {[%clk 0:02:48.6]} 21... Qa5 {[%clk 0:00:38.8]} 22. Bxf6 {[%clk
0:02:41.6]} 1-0

[Event "*** Titled Tuesday Blitz"]
[Site "Chess.com"]
[Date "2020.04.21"]
[Round "4"]
[White "agus_k"]
[Black "Quiet_Desperation"]
[Result "1-0"]
[WhiteElo "2595"]
[BlackElo "1963"]
[TimeControl "180+1"]
[EndTime "10:36:37 PDT"]
[Termination "agus_k won by resignation"]

1. e4 {[%clk 0:03:00.9]} 1... e6 {[%clk 0:03:00]} 2. d4 {[%clk 0:03:00.5]} 2...
d5 {[%clk 0:03:00.5]} 3. Nd2 {[%clk 0:02:59.5]} 3... Nf6 {[%clk 0:03:00.9]} 4.
e5 {[%clk 0:02:59.1]} 4... Nfd7 {[%clk 0:03:01.3]} 5. c3 {[%clk 0:02:58.9]} 5...
c5 {[%clk 0:03:01.4]} 6. f4 {[%clk 0:02:58.6]} 6... Nc6 {[%clk 0:03:01.6]} 7.
Ndf3 {[%clk 0:02:58.7]} 7... Qb6 {[%clk 0:02:43.9]} 8. Ne2 {[%clk 0:02:58]} 8...
cxd4 {[%clk 0:02:32]} 9. cxd4 {[%clk 0:02:58.9]} 9... Na5 {[%clk 0:02:27.6]} 10.
g3 {[%clk 0:02:56.3]} 10... Nc4 {[%clk 0:02:15.7]} 11. b3 {[%clk 0:02:32.1]}
11... Bb4+ {[%clk 0:02:13.7]} 12. Kf2 {[%clk 0:02:31.5]} 12... Na3 {[%clk
0:02:09.2]} 13. Kg2 {[%clk 0:02:30.7]} 13... f6 {[%clk 0:02:06.8]} 14. Bb2
{[%clk 0:02:26.6]} 14... fxe5 {[%clk 0:02:06.2]} 15. fxe5 {[%clk 0:02:26.6]}
15... O-O {[%clk 0:02:03.4]} 16. Nf4 {[%clk 0:02:26.5]} 16... Nb8 {[%clk
0:01:57.8]} 17. Bd3 {[%clk 0:02:25.3]} 17... Be7 {[%clk 0:01:41.9]} 18. Bxa3
{[%clk 0:02:14.5]} 18... Bxa3 {[%clk 0:01:41.4]} 19. Bxh7+ {[%clk 0:02:14.1]}
19... Kxh7 {[%clk 0:01:41.7]} 20. Ng5+ {[%clk 0:02:14]} 20... Kg8 {[%clk
0:01:33.1]} 21. Qh5 {[%clk 0:02:13.7]} 21... Rxf4 {[%clk 0:01:32.3]} 22. Raf1
{[%clk 0:02:03.1]} 22... Rf5 {[%clk 0:01:24.1]} 23. Qe8+ {[%clk 0:01:59.6]}
23... Bf8 {[%clk 0:01:18.3]} 24. Rxf5 {[%clk 0:01:59]} 24... exf5 {[%clk
0:01:17.3]} 25. Qf7+ {[%clk 0:01:59.2]} 1-0

[Event "*** Titled Tuesday Blitz"]
[Site "Chess.com"]
[Date "2020.04.21"]
[Round "4"]
[White "IljaJoke"]
[Black "eldidi20"]
[Result "1-0"]
[WhiteElo "2494"]
[BlackElo "2157"]
[TimeControl "180+1"]
[EndTime "10:36:39 PDT"]
[Termination "IljaJoke won by resignation"]

1. d4 {[%clk 0:02:58.8]} 1... Nf6 {[%clk 0:02:57.9]} 2. c4 {[%clk 0:02:59.1]}
2... g6 {[%clk 0:02:57.7]} 3. Nc3 {[%clk 0:02:58.6]} 3... Bg7 {[%clk 0:02:58.2]}
4. e4 {[%clk 0:02:58.8]} 4... O-O {[%clk 0:02:58.3]} 5. Be2 {[%clk 0:02:59.3]}
5... d6 {[%clk 0:02:58.6]} 6. Be3 {[%clk 0:03:00]} 6... e5 {[%clk 0:02:47.6]} 7.
d5 {[%clk 0:03:00.1]} 7... a5 {[%clk 0:02:47.5]} 8. g4 {[%clk 0:03:00.3]} 8...
Na6 {[%clk 0:02:46.5]} 9. h4 {[%clk 0:03:00.7]} 9... Nc5 {[%clk 0:02:46.2]} 10.
f3 {[%clk 0:03:01.2]} 10... c6 {[%clk 0:02:44.7]} 11. h5 {[%clk 0:02:59.5]}
11... cxd5 {[%clk 0:02:38.6]} 12. cxd5 {[%clk 0:03:00.4]} 12... Bd7 {[%clk
0:01:55.3]} 13. Qd2 {[%clk 0:02:56.6]} 13... Qb8 {[%clk 0:01:53.9]} 14. Bh6
{[%clk 0:02:50.3]} 14... b5 {[%clk 0:01:40.2]} 15. hxg6 {[%clk 0:02:43.8]} 15...
fxg6 {[%clk 0:01:39]} 16. Bxg7 {[%clk 0:02:43.8]} 16... Kxg7 {[%clk 0:01:39.9]}
17. Qh6+ {[%clk 0:02:44]} 17... Kh8 {[%clk 0:01:30.1]} 18. g5 {[%clk 0:02:36.6]}
18... Nh5 {[%clk 0:01:30.2]} 19. Rxh5 {[%clk 0:02:36.3]} 19... gxh5 {[%clk
0:01:30.5]} 20. g6 {[%clk 0:02:36.7]} 20... Rf7 {[%clk 0:00:46.3]} 21. gxf7
{[%clk 0:02:35.2]} 21... Qd8 {[%clk 0:00:46.2]} 22. Bxb5 {[%clk 0:02:26.9]} 1-0

[Event "*** Titled Tuesday Blitz"]
[Site "Chess.com"]
[Date "2020.04.21"]
[Round "4"]
[White "Berant"]
[Black "Boorchess"]
[Result "0-1"]
[WhiteElo "2361"]
[BlackElo "2562"]
[TimeControl "180+1"]
[EndTime "10:36:48 PDT"]
[Termination "Boorchess won by resignation"]

1. e4 {[%clk 0:03:00.9]} 1... e6 {[%clk 0:02:59.9]} 2. d4 {[%clk 0:03:00.7]}
2... d5 {[%clk 0:03:00]} 3. Nd2 {[%clk 0:02:59.4]} 3... c5 {[%clk 0:02:59.4]} 4.
exd5 {[%clk 0:02:58]} 4... exd5 {[%clk 0:02:59.5]} 5. Ngf3 {[%clk 0:02:58.5]}
5... Nc6 {[%clk 0:02:59.8]} 6. Bb5 {[%clk 0:02:57.2]} 6... Bd6 {[%clk
0:03:00.1]} 7. Qe2+ {[%clk 0:02:57.2]} 7... Qe7 {[%clk 0:02:57.8]} 8. dxc5
{[%clk 0:02:57.4]} 8... Bxc5 {[%clk 0:02:56.4]} 9. Nb3 {[%clk 0:02:57.1]} 9...
Qxe2+ {[%clk 0:02:55.3]} 10. Bxe2 {[%clk 0:02:53.6]} 10... Bb6 {[%clk 0:02:54]}
11. Bf4 {[%clk 0:02:51.6]} 11... Nge7 {[%clk 0:02:52.6]} 12. a4 {[%clk
0:02:49.3]} 12... a6 {[%clk 0:02:51.1]} 13. a5 {[%clk 0:02:49.3]} 13... Ba7
{[%clk 0:02:51]} 14. O-O {[%clk 0:02:37.3]} 14... Bg4 {[%clk 0:02:49.2]} 15.
Rad1 {[%clk 0:02:37.4]} 15... O-O {[%clk 0:02:48.1]} 16. h3 {[%clk 0:02:36.7]}
16... Bh5 {[%clk 0:02:47.7]} 17. Rfe1 {[%clk 0:02:33.1]} 17... Rfe8 {[%clk
0:02:45.1]} 18. Ne5 {[%clk 0:02:30.9]} 18... Bxe2 {[%clk 0:02:28.9]} 19. Rxe2
{[%clk 0:02:30.5]} 19... Ng6 {[%clk 0:02:18.1]} 20. Nxc6 {[%clk 0:01:37.6]}
20... Rxe2 {[%clk 0:02:14.9]} 21. Nxa7 {[%clk 0:01:25.1]} 21... Nxf4 {[%clk
0:02:11.7]} 22. g3 {[%clk 0:01:24.7]} 22... Ne6 {[%clk 0:02:06.8]} 23. Rxd5
{[%clk 0:01:23.8]} 23... Rxa7 {[%clk 0:02:02.6]} 24. Nd4 {[%clk 0:01:22]} 24...
Re1+ {[%clk 0:02:01.4]} 25. Kg2 {[%clk 0:01:21.6]} 25... Ra8 {[%clk 0:02:01.2]}
26. Rd7 {[%clk 0:01:20.5]} 26... Rd8 {[%clk 0:01:58.8]} 0-1

[Event "*** Titled Tuesday Blitz"]
[Site "Chess.com"]
[Date "2020.04.21"]
[Round "4"]
[White "francyIM"]
[Black "lukas_111111"]
[Result "0-1"]
[WhiteElo "2692"]
[BlackElo "2537"]
[TimeControl "180+1"]
[EndTime "10:37:05 PDT"]
[Termination "lukas_111111 won by resignation"]

1. c4 {[%clk 0:03:00.9]} 1... e6 {[%clk 0:02:58.2]} 2. Nc3 {[%clk 0:02:59.9]}
2... d5 {[%clk 0:02:56.4]} 3. d4 {[%clk 0:02:59]} 3... c5 {[%clk 0:02:56]} 4.
cxd5 {[%clk 0:02:57.6]} 4... exd5 {[%clk 0:02:56.4]} 5. Nf3 {[%clk 0:02:57.8]}
5... Nc6 {[%clk 0:02:56.7]} 6. g3 {[%clk 0:02:50.9]} 6... Nf6 {[%clk 0:02:56.4]}
7. Bg2 {[%clk 0:02:47.8]} 7... Be7 {[%clk 0:02:56.8]} 8. O-O {[%clk 0:02:47.5]}
8... O-O {[%clk 0:02:57.3]} 9. dxc5 {[%clk 0:02:48]} 9... Bxc5 {[%clk
0:02:57.4]} 10. a3 {[%clk 0:02:47.6]} 10... d4 {[%clk 0:02:55]} 11. Na4 {[%clk
0:02:46.6]} 11... Be7 {[%clk 0:02:53.9]} 12. b4 {[%clk 0:02:46.7]} 12... Bf5
{[%clk 0:02:44.1]} 13. Bb2 {[%clk 0:02:46.4]} 13... d3 {[%clk 0:02:41.2]} 14. e3
{[%clk 0:02:43.8]} 14... b5 {[%clk 0:02:25.6]} 15. Nc3 {[%clk 0:02:29.4]} 15...
Qb6 {[%clk 0:02:24.8]} 16. Nh4 {[%clk 0:02:27.9]} 16... Be6 {[%clk 0:02:19.8]}
17. Nf3 {[%clk 0:02:22.4]} 17... Rfd8 {[%clk 0:02:17.7]} 18. Ng5 {[%clk
0:02:19.8]} 18... Bc4 {[%clk 0:02:12.7]} 19. Qd2 {[%clk 0:02:18.2]} 19... a5
{[%clk 0:02:11.4]} 20. bxa5 {[%clk 0:02:16.8]} 20... Nxa5 {[%clk 0:02:11.4]} 21.
Bxa8 {[%clk 0:02:13.9]} 21... Nb3 {[%clk 0:02:11.4]} 22. Qd1 {[%clk 0:02:13.9]}
22... Nxa1 {[%clk 0:02:11.1]} 23. Bg2 {[%clk 0:02:14.5]} 23... Nc2 {[%clk
0:02:07.2]} 24. Nb1 {[%clk 0:01:59.5]} 24... Nxe3 {[%clk 0:02:03.1]} 25. fxe3
{[%clk 0:01:59.2]} 25... Qxe3+ {[%clk 0:02:03.1]} 26. Kh1 {[%clk 0:01:59.5]}
26... Qxg5 {[%clk 0:02:03.2]} 27. Nd2 {[%clk 0:01:58.6]} 27... Ng4 {[%clk
0:01:50.7]} 28. Ne4 {[%clk 0:01:54.2]} 28... Qg6 {[%clk 0:01:38.6]} 29. Qd2
{[%clk 0:01:50.1]} 29... Bd5 {[%clk 0:01:30]} 30. Qxd3 {[%clk 0:01:48.3]} 30...
Bxe4 {[%clk 0:01:28.5]} 31. Qxe4 {[%clk 0:01:47.2]} 31... Nf2+ {[%clk
0:01:27.7]} 0-1

[Event "*** Titled Tuesday Blitz"]
[Site "Chess.com"]
[Date "2020.04.21"]
[Round "4"]
[White "Tayson_7"]
[Black "GHANDEEVAM2003"]
[Result "1-0"]
[WhiteElo "2716"]
[BlackElo "2881"]
[TimeControl "180+1"]
[EndTime "10:37:06 PDT"]
[Termination "Tayson_7 won by resignation"]

1. e4 {[%clk 0:03:00.9]} 1... e6 {[%clk 0:02:57.2]} 2. d4 {[%clk 0:02:57.8]}
2... d5 {[%clk 0:02:57.3]} 3. Nc3 {[%clk 0:02:58.2]} 3... Nf6 {[%clk 0:02:57]}
4. e5 {[%clk 0:02:58.8]} 4... Ne4 {[%clk 0:02:57.2]} 5. Nxe4 {[%clk 0:02:43.2]}
5... dxe4 {[%clk 0:02:58.1]} 6. Be3 {[%clk 0:02:44.1]} 6... b6 {[%clk
0:02:57.9]} 7. Ne2 {[%clk 0:02:40.8]} 7... Bb7 {[%clk 0:02:58.1]} 8. Nc3 {[%clk
0:02:37.9]} 8... Nd7 {[%clk 0:02:57.7]} 9. Qg4 {[%clk 0:02:34.6]} 9... h5 {[%clk
0:02:57.3]} 10. Qf4 {[%clk 0:02:32.3]} 10... Bb4 {[%clk 0:02:57.8]} 11. Be2
{[%clk 0:02:32.3]} 11... Qe7 {[%clk 0:02:47.9]} 12. O-O {[%clk 0:02:24.1]} 12...
Bxc3 {[%clk 0:02:47.2]} 13. bxc3 {[%clk 0:02:25]} 13... O-O-O {[%clk 0:02:47.8]}
14. a4 {[%clk 0:02:25.4]} 14... Rdg8 {[%clk 0:02:43.5]} 15. h4 {[%clk 0:02:18]}
15... f6 {[%clk 0:02:42.2]} 16. exf6 {[%clk 0:02:12.7]} 16... gxf6 {[%clk
0:02:43.1]} 17. a5 {[%clk 0:02:13.6]} 17... Qd6 {[%clk 0:02:25.1]} 18. Qxd6
{[%clk 0:02:09.9]} 18... cxd6 {[%clk 0:02:25.1]} 19. axb6 {[%clk 0:02:10.8]}
19... axb6 {[%clk 0:02:26]} 20. Ra7 {[%clk 0:02:11.4]} 20... Kc7 {[%clk
0:02:19.9]} 21. Ba6 {[%clk 0:02:04.5]} 21... Rb8 {[%clk 0:02:20.2]} 22. Rb1
{[%clk 0:02:05.1]} 22... f5 {[%clk 0:02:05.2]} 23. Bg5 {[%clk 0:01:55.6]} 23...
Rhg8 {[%clk 0:01:43.2]} 24. Rb4 {[%clk 0:01:53.6]} 24... b5 {[%clk 0:01:20.3]}
25. Rxb5 {[%clk 0:01:45.9]} 25... Nb6 {[%clk 0:01:19.8]} 26. c4 {[%clk
0:01:46.4]} 1-0

[Event "*** Titled Tuesday Blitz"]
[Site "Chess.com"]
[Date "2020.04.21"]
[Round "4"]
[White "PetrolulSah"]
[Black "imrk_64"]
[Result "1-0"]
[WhiteElo "2206"]
[BlackElo "2440"]
[TimeControl "180+1"]
[EndTime "10:37:13 PDT"]
[Termination "PetrolulSah won by resignation"]

1. d4 {[%clk 0:03:00.9]} 1... Nf6 {[%clk 0:02:57.9]} 2. c4 {[%clk 0:03:00.8]}
2... e6 {[%clk 0:02:58.1]} 3. g3 {[%clk 0:02:59.4]} 3... d5 {[%clk 0:02:58.3]}
4. Bg2 {[%clk 0:02:59.5]} 4... Be7 {[%clk 0:02:58.6]} 5. Nf3 {[%clk 0:02:59.6]}
5... O-O {[%clk 0:02:59.1]} 6. O-O {[%clk 0:03:00.4]} 6... dxc4 {[%clk
0:02:59.1]} 7. Qc2 {[%clk 0:03:00.6]} 7... b5 {[%clk 0:02:58.4]} 8. Bg5 {[%clk
0:02:56.9]} 8... Bb7 {[%clk 0:02:48.7]} 9. Bxf6 {[%clk 0:02:55.9]} 9... Bxf6
{[%clk 0:02:46]} 10. Ng5 {[%clk 0:02:55.8]} 10... Bxg5 {[%clk 0:02:33.7]} 11.
Bxb7 {[%clk 0:02:55.4]} 11... Nd7 {[%clk 0:02:33.8]} 12. Bxa8 {[%clk 0:02:55.1]}
12... Qxa8 {[%clk 0:02:34.7]} 13. Nc3 {[%clk 0:02:52.3]} 13... b4 {[%clk
0:02:23.2]} 14. Ne4 {[%clk 0:02:49.7]} 14... Be7 {[%clk 0:02:23.1]} 15. Nd2
{[%clk 0:02:46.2]} 15... c5 {[%clk 0:02:09]} 16. Qxc4 {[%clk 0:02:40.4]} 16...
Rc8 {[%clk 0:02:07.6]} 17. dxc5 {[%clk 0:02:35.5]} 17... Bxc5 {[%clk 0:02:03.2]}
18. Qe4 {[%clk 0:02:33.1]} 18... Qb8 {[%clk 0:01:56.9]} 19. Rac1 {[%clk
0:02:31.8]} 19... Nf6 {[%clk 0:01:55.2]} 20. Qf3 {[%clk 0:02:13.3]} 20... h6
{[%clk 0:01:52.7]} 21. Ne4 {[%clk 0:02:10.4]} 21... Nxe4 {[%clk 0:01:50.5]} 22.
Qxe4 {[%clk 0:02:10.5]} 22... Qb6 {[%clk 0:01:47.3]} 23. Rc4 {[%clk 0:02:00.6]}
23... Rd8 {[%clk 0:01:44.7]} 24. Qc2 {[%clk 0:01:59.5]} 24... Bd4 {[%clk
0:01:33.3]} 25. e3 {[%clk 0:01:51.5]} 25... Bf6 {[%clk 0:01:32.4]} 26. Rc8
{[%clk 0:01:45.7]} 26... Rxc8 {[%clk 0:01:29.5]} 27. Qxc8+ {[%clk 0:01:44.6]}
27... Kh7 {[%clk 0:01:30.4]} 28. Rd1 {[%clk 0:01:40.4]} 28... Bxb2 {[%clk
0:01:26.6]} 29. Qc2+ {[%clk 0:01:39.3]} 1-0

[Event "*** Titled Tuesday Blitz"]
[Site "Chess.com"]
[Date "2020.04.21"]
[Round "4"]
[White "Rap_woyska"]
[Black "harrisonchess21"]
[Result "0-1"]
[WhiteElo "2358"]
[BlackElo "2622"]
[TimeControl "180+1"]
[EndTime "10:37:27 PDT"]
[Termination "harrisonchess21 won by resignation"]

1. c4 {[%clk 0:03:00.9]} 1... b6 {[%clk 0:02:58.5]} 2. e4 {[%clk 0:03:00.7]}
2... Bb7 {[%clk 0:02:58.5]} 3. Nc3 {[%clk 0:03:01.6]} 3... e5 {[%clk 0:02:57.8]}
4. Nf3 {[%clk 0:03:01.3]} 4... Nc6 {[%clk 0:02:56.6]} 5. Bd3 {[%clk 0:03:00.8]}
5... Nf6 {[%clk 0:02:56.3]} 6. O-O {[%clk 0:03:00.6]} 6... Bc5 {[%clk
0:02:53.4]} 7. Na4 {[%clk 0:02:53.6]} 7... Bd6 {[%clk 0:02:51.3]} 8. a3 {[%clk
0:02:50.1]} 8... Qe7 {[%clk 0:02:50.2]} 9. b4 {[%clk 0:02:45.9]} 9... O-O {[%clk
0:02:42.7]} 10. Bb2 {[%clk 0:02:43]} 10... a5 {[%clk 0:02:42.6]} 11. b5 {[%clk
0:02:29.3]} 11... Nd4 {[%clk 0:02:40.2]} 12. Nxd4 {[%clk 0:02:21.1]} 12... exd4
{[%clk 0:02:40]} 13. Bxd4 {[%clk 0:02:22]} 13... Nxe4 {[%clk 0:02:35.5]} 14. Re1
{[%clk 0:01:59.2]} 14... Qh4 {[%clk 0:02:24.5]} 15. g3 {[%clk 0:01:40.5]} 15...
Nxg3 {[%clk 0:02:21.8]} 16. fxg3 {[%clk 0:01:21.1]} 16... Bxg3 {[%clk
0:02:13.3]} 17. Be4 {[%clk 0:00:24.5]} 17... Bxe4 {[%clk 0:01:59.2]} 18. hxg3
{[%clk 0:00:19]} 18... Qxg3+ {[%clk 0:01:58]} 0-1